Cogmind - Beta 13 @@@ ROGUE MODE // 2024.04.01 @ 19:12:54 Player: Bean Result: Destroyed by G-34 Mercenary with Small Laser Performance ------------- Evolutions (1) 500 Regions Visited (3) 600 Robots Destroyed (17) 85 Value Destroyed (254) 254 Prototype IDs (0) 0 Alien Tech Used (0) 0 Bonus (0) 0 TOTAL SCORE: 1439 Bonus ------- None Cogmind --------- Core Integrity 0/400 Matter 235/300 Energy 98/100 System Corruption 0% Temperature Cool (6) Movement Core (50) Location -9/Materials Parts ------- > --- POWER (1) -------- (None) > --- PROPULSION (3) --- (None) > --- UTILITY (3) ------ Visual Processing Unit > --- WEAPON (2) ------- (None) > --- INVENTORY (5) ---- Signal Interpreter Hacking Suite Hacking Suite Peak State ------------ > --- POWER ------------ Light Ion Engine > --- PROPULSION ------- Hover Unit Airjet > --- UTILITY ---------- Visual Processing Unit Hacking Suite > --- WEAPON ----------- Light Assault Rifle Light Assault Rifle > --- INVENTORY -------- Flight Unit Signal Interpreter Actuator Array Hacking Suite Improved Trap Extractor [Rating: 13] Favorites ----------- Power Light Ion Engine Engine Light Ion Engine Propulsion Flight Unit Treads Light Treads Hover Unit Hover Unit Flight Unit Flight Unit Utility Hacking Suite Device Seismic Detector Storage Small Storage Unit Processor Visual Processing Unit Hackware Hacking Suite Weapon Light Assault Rifle Ballistic Gun Light Assault Rifle Special Melee Weapon Datajack Build | -11 -10 -10 -9 ------- Run | Yrd Mat Min Mat Slots Evolved 2 | . . . 2 Power . | . . . . Propulsion 1 | . . . 1 Utility 1 | . . . 1 Weapon . | . . . . Parts Attached 29 | 6 10 5 8 Power 3 | 1 1 1 . Engine 3 | 1 1 1 . Core . | . . . . Reactor . | . . . . Propulsion 12 | 2 4 4 2 Treads 2 | 2 . . . Leg . | . . . . Wheel . | . . . . Hover 3 | . 1 2 . Flight 7 | . 3 2 2 Utility 5 | 1 3 . 1 Device 2 | . 1 . 1 Storage 1 | 1 . . . Processor 1 | . 1 . . Hackware 1 | . 1 . . Protection . | . . . . Artifact . | . . . . Weapon 9 | 2 2 . 5 Energy Gun . | . . . . Energy Cannon . | . . . . Ballistic Gun 7 | 2 2 . 3 Ballistic Cannon . | . . . . Launcher . | . . . . Special Weapon . | . . . . Impact Weapon . | . . . . Slashing Weapon . | . . . . Piercing Weapon . | . . . . Special Melee Weapon 2 | . . . 2 Unidentified Prototypes . | . . . . Parts Lost 11 | . . 2 9 Power 2 | . . 1 1 Propulsion 4 | . . 1 3 Utility 2 | . . . 2 Weapon 3 | . . . 3 Highest Loss Streak 9 | . . 2 9 To Critical Strikes . | . . . . Average Slot Usage (%) 86 | . 87 95 73 Engine 12 | . 14 13 8 Treads 7 | . 16 . . Hover 5 | . . 15 . Flight 12 | . 9 8 20 Device 4 | . 7 . 6 Storage 3 | . 8 . . Processor 7 | . . 14 11 Hackware 8 | . 3 14 10 Ballistic Gun 23 | . 26 28 11 Special Melee Weapon 1 | . . . 6 Naked Turns . | . . . . Heaviest Build 14 | 13 14 5 7 Greatest Support 40 | 40 40 14 12 Greatest Overweight (x) 1 | . . 1 . Average Overweight (x) . | . . . . Largest Inventory Capacity 8 | 8 8 5 5 Average Capacity 5 | 7 6 5 5 Most Carried 5 | 5 4 5 5 Average Carried 2 | 1 1 3 3 Final Capacity 8 | 8 5 5 5 Final Carried 3 | 1 3 2 3 Class Distribution -------------------- 58% | Scavenger-Mutant 41% | Mutant Dominant Class ---------------- Mutant | -10/Materials Scavenger-Mutant | -10/Mines Scavenger-Mutant | -9/Materials Resources | -11 -10 -10 -9 ----------- Run | Yrd Mat Min Mat Matter Collected 479 | 239 126 31 83 Remotely . | . . . . Salvage Created 299 | . 157 41 101 Parts 33 | . 17 5 11 Haulers Intercepted . | . . . . Recyclers Shooed . | . . . . Parts Field Recycled . | . . . . Retrieved Matter . | . . . . Parts Self-Destructed . | . . . . Prevented . | . . . . Kills | -11 -10 -10 -9 ------- Run | Yrd Mat Min Mat Combat Hostiles Destroyed 15 | . 5 3 7 Guns 14 | . 5 3 6 AOE 1 | . . . 1 Classes Destroyed 4 | . 4 . . Operator 1 | . 1 . . Watcher 1 | . 1 . . Swarmer 12 | . 3 3 6 Grunt 3 | . 2 . 1 Best Kill Streak 5 | . 4 2 5 Combat Bots Only 5 | . 4 2 5 Max Kills in Single Turn 2 | . 2 1 1 Gunslinging 1 | . 1 . . Exploded 1 | . . . 1 Melee . | . . . . Uniques/NPCs Destroyed . | . . . . Combat | -11 -10 -10 -9 -------- Run | Yrd Mat Min Mat Hostile Shots Fired 210 | . 66 33 111 Missed 102 | . 32 14 56 Damage Taken 1090 | . 276 207 607 Core 499 | . 30 65 404 Absorbed by Shields 86 | . . . 86 Core Remaining (%) 81 | 100 . 62 . Volleys Fired 55 | . 18 10 27 Largest 2 | . 2 2 1 Hottest 40 | . 40 40 20 Shots Fired 83 | . 36 20 27 Gun 83 | . 36 20 27 Cannon . | . . . . Launcher . | . . . . Special . | . . . . Kinetic 83 | . 36 20 27 Thermal . | . . . . Explosive . | . . . . Electromagnetic . | . . . . Robot Hit Streak 8 | . 8 5 7 Robot Miss Streak 7 | . 6 7 4 Penetration Max . | . . . . Secondary Targets 2 | . 2 . . Max Gunslinging Chain 1 | . 1 . . Shots Hit Robots 47 | . 20 7 20 Core Hits 27 | . 12 5 10 Critical Kills . | . . . . Critical Parts Destroyed . | . . . . Critical Strikes . | . . . . Melee Attacks 4 | . . . 4 Impact . | . . . . Slashing . | . . . . Piercing . | . . . . Sneak Attacks 2 | . . . 2 Combat Hostiles . | . . . . Follow-up Attacks . | . . . . Damage Inflicted 392 | . 207 51 134 Guns 392 | . 207 51 134 Cannons . | . . . . Explosions . | . . . . Melee . | . . . . Ramming . | . . . . Kinetic 392 | . 207 51 134 Thermal . | . . . . Explosive . | . . . . Electromagnetic . | . . . . Impact . | . . . . Slashing . | . . . . Piercing . | . . . . Highest Corruption 2 | . 2 2 . Average Corruption 2 | . 2 2 . Corruption Purged . | . . . . Corruption Blocked . | . . . . Effects 3 | . 1 2 . Heat Flow Errors 2 | . . 2 . Data Loss (minor) 1 | . 1 . . Overload Shots . | . . . . Overflow Damage . | . . . . Projectiles . | . . . . Explosions . | . . . . Melee . | . . . . Knockbacks . | . . . . Impact . | . . . . Kinetic . | . . . . Secondary . | . . . . Self-Inflicted Damage . | . . . . Shots . | . . . . Rammed . | . . . . Targets Rammed . | . . . . Kicked . | . . . . Crushed . | . . . . Highest Temperature 234 | . 10 234 19 Average Temperature 43 | . 5 61 7 Received Heat Transfer 124 | . 24 36 64 Siege Activations . | . . . . Robots Corrupted . | . . . . Combat Hostiles . | . . . . Parts Fried . | . . . . Impact Corruptions . | . . . . Robots Melted . | . . . . Combat Hostiles . | . . . . Parts Melted . | . . . . Heat Transferred . | . . . . Parts Sabotaged . | . . . . Parts Stolen . | . . . . Parts Stripped . | . . . . Power Chain Reactions . | . . . . Alert | -11 -10 -10 -9 ------- Run | Yrd Mat Min Mat Peak Influence 252 | . 242 238 252 Initial 94 | . . 94 92 Average 117 | . 94 136 185 Maximum Alert Level 1 | . 1 1 1 Low Security (%) 76 | 100 92 73 42 Level 1 23 | . 7 26 57 Level 2 . | . . . . Level 3 . | . . . . Level 4 . | . . . . Level 5 . | . . . . High Security . | . . . . Max Security . | . . . . Squads Dispatched 3 | . 1 . 2 Investigation . | . . . . Extermination . | . . . . Reinforcement 3 | . 1 . 2 Assault . | . . . . Garrison . | . . . . Intercept . | . . . . Searches Triggered . | . . . . Construction Impeded . | . . . . Haulers Reinforced . | . . . . Active Scanning Responses . | . . . . Cargo Convoy Interrupts . | . . . . Stealth | -11 -10 -10 -9 --------- Run | Yrd Mat Min Mat Distress Signals 2 | . 1 . 1 Communications Jammed . | . . . . Distress Signals . | . . . . Times Spotted 37 | . 15 7 15 Peak Tracking Total 9 | . 7 3 9 Tactical Retreats 5 | . 3 2 . Traps | -11 -10 -10 -9 ------- Run | Yrd Mat Min Mat Traps Triggered 2 | . 1 1 . Indirectly . | . . . . Trap Hack Attempts . | . . . . Triggered . | . . . . Disarmed . | . . . . Reprogrammed . | . . . . Reused . | . . . . Traps Extracted . | . . . . Installed . | . . . . Triggered . | . . . . Machines | -11 -10 -10 -9 ---------- Run | Yrd Mat Min Mat Machines Disabled . | . . . . Max in Single Turn . | . . . . Machines Repaired . | . . . . Machines Dismantled . | . . . . Machines Sabotaged . | . . . . Overloaded Fab Kills . | . . . . Hacking | -11 -10 -10 -9 --------- Run | Yrd Mat Min Mat Machines Accessed 3 | . 1 2 . Terminals 2 | . 1 1 . Fabricators . | . . . . Repair Stations . | . . . . Recycling Units . | . . . . Scanalyzers . | . . . . Garrison Access . | . . . . Total Hacks 8 | . 2 6 . Successful 4 | . . 4 . Failed 4 | . 2 2 . Catastrophic 2 | . 1 1 . Database Lockouts . | . . . . Manual 2 | . . 2 . Terminals 7 | . 2 5 . Fabricators . | . . . . Repair Stations . | . . . . Recycling Units . | . . . . Scanalyzers . | . . . . Garrison Access . | . . . . Terminal Hacks 4 | . . 4 . Record 1 | . . 1 . Open Door 1 | . . 1 . Security Status 1 | . . 1 . Zone Layout 1 | . . 1 . Fabricator Hacks . | . . . . Repair Station Hacks . | . . . . Recycling Unit Hacks . | . . . . Scanalyzer . | . . . . Garrison Access Hacks . | . . . . Unauthorized Hacks . | . . . . Terminals . | . . . . Fabricators . | . . . . Repair Stations . | . . . . Recycling Units . | . . . . Scanalyzers . | . . . . Garrison Access . | . . . . Data Cores Recovered 1 | . 1 . . Used . | . . . . Hacking Detections 2 | . 1 1 . Full Trace Events 1 | . 1 . . Feedback Events . | . . . . Feedback Blocked . | . . . . Robot Schematics Acquired . | . . . . Robots Built . | . . . . Authchips . | . . . . Time . | . . . . Total Robot Build Rating . | . . . . Part Schematics Acquired . | . . . . Parts Built . | . . . . Authchips . | . . . . Time . | . . . . Total Part Build Rating . | . . . . Parts Repaired . | . . . . Time . | . . . . Parts Recycled . | . . . . Recycled Matter . | . . . . Retrieved Matter . | . . . . Retrieved Components . | . . . . Parts Scanalyzed . | . . . . Part Schematics Acquired . | . . . . Parts Damaged . | . . . . Bothacking | -11 -10 -10 -9 ------------ Run | Yrd Mat Min Mat Used RIF Installer . | . . . . Robots Hacked 2 | . . . 2 Non-combat 1 | . . . 1 Combat 1 | . . . 1 Robot Hacks Applied 2 | . . . 2 parse_system 2 | . . . 2 Relay Couplers Released . | . . . . Fabnet Peak Effective % . | . . . . Robots Rewired . | . . . . Allies Hacked . | . . . . Hacks Repelled . | . . . . Allies | -11 -10 -10 -9 -------- Run | Yrd Mat Min Mat Total Allies . | . . . . Largest Group . | . . . . Highest-Rated Group . | . . . . Highest-Rated Ally . | . . . . Total Orders . | . . . . Ally Attacks . | . . . . Total Damage . | . . . . Kills . | . . . . Allies Corrupted . | . . . . Allies Melted . | . . . . Intel | -11 -10 -10 -9 ------- Run | Yrd Mat Min Mat Robot Analysis Total . | . . . . Derelict Logs Recovered 1 | . . 1 . Drone Launches . | . . . . Drone Recoveries . | . . . . Exploration | -11 -10 -10 -9 ------------- Run | Yrd Mat Min Mat Turns Passed 743 | 71 291 224 157 Spaces Moved 845 | 45 298 315 187 Core 32 | 12 . . 20 Treads 112 | 33 79 . . Legs . | . . . . Wheels . | . . . . Hover 166 | . . 166 . Flight 535 | . 219 149 167 Fastest Speed 34 | 50 37 37 34 Average Speed 59 | 130 70 51 37 Slowest Speed 160 | 160 160 120 50 Overloaded Moves . | . . . . Propulsion Burnouts . | . . . . Robots Hopped 3 | . . . 3 Cave-ins Triggered . | . . . . Exploration Rate (%) 34 | 3 46 64 23 Regions Visited 3 Branch Regions 1 Pre-discovered Areas 1 | . . 1 . Known Exits Taken . | . . . . Unknown Exits Taken 3 | 1 1 1 . Scrap Searched . | . . . . Spaces Dug . | . . . . Terrain Destroyed . | . . . . Melee . | . . . . Projectile . | . . . . AOE . | . . . . Terrain Rammed . | . . . . Walls Destroyed . | . . . . Machines Disabled . | . . . . Actions | -11 -10 -10 -9 --------- Run | Yrd Mat Min Mat Total 1017 | 57 351 361 248 Wait 41 | . 5 20 16 Move 836 | 44 297 314 181 Hop 3 | . . . 3 Pick Up 29 | 7 10 6 6 Fast Attach . | . . . . Attach 23 | 6 7 4 6 Detach 6 | . 4 1 1 Swap 6 | . 3 1 2 Drop 14 | . 7 5 2 Fire 55 | . 18 10 27 Melee 4 | . . . 4 Ram . | . . . . Kick . | . . . . Crush . | . . . . Escape Stasis . | . . . . Rewire . | . . . . Trap . | . . . . Miscellaneous . | . . . . Route ------- -11/Scrapyard -10/Materials (discovered 2 exits: [*Mat] / *Min) -10/Mines -9/Materials (discovered 1 exit: [*Mat]) History --------- Turn | Location | Event 6 | -11/Scrapyard | Discovered new exit (range 14) 72 | -11/Scrapyard | Entered Materials 258 | -10/Materials | Discovered new exit (range 7) 270 | -10/Materials | Discovered new exit (range 3) 363 | -10/Materials | Entered Mines 367 | -10/Mines | Learned location of Zion (-7) 438 | -10/Mines | Met a Derelict who couldn't figure out how to use a Trap Extractor 489 | -10/Mines | Discovered new exit (range 8) 587 | -10/Mines | Entered Materials 587 | -9/Materials | Evolved 2 slots: Propulsion x1, Utility x1 591 | -9/Materials | Build established: Scavenger-Mutant 727 | -9/Materials | Core integrity fell below 50% 727 | -9/Materials | Core integrity fell below 20% 731 | -9/Materials | Discovered new exit (range 11) 744 | -9/Materials | Destroyed by G-34 Mercenary with Small Laser Last Messages --------------- Critical hit (Burn: +37). K-01 Serf cleans the Fusion Modulator. K-01 Serf collects debris. Acquired 33 matter. R-06 Scavenger collects Flight Unit. Fusion Modulator explodes. R-06 Scavenger destroyed. Fusion Modulator explodes. Lgt. Assault Rifle destroyed. G-34 Mercenary destroyed. K-01 Serf destroyed. Fusion Modulator explodes. K-01 Serf destroyed. U-05 Engineer lays Concrete. K-01 Serf collects debris. U-05 Engineer lays Concrete. K-01 Serf collects debris. EXIT=FOUND Hacking Suite destroyed. K-01 Serf collects debris. Map ----- +----------------------------------------------------+ | ????????????????????????????????????????????????? | | ????????????????????????????????????????????????? | | ????????????????????????????????????????????????? | | ??????????????????????????????????????????????#?? | | ????????????????????????????????????????????? #?? | | ???????????????????????????????????????????? #?? | | ???????????????????????????????????###?##?? #?? | | ?????????????????????????????????### ## ### ##? | | ?????????????????????????????????#"""""""" ## | | ?????????????????????????????????#" " T | | ????????????????????????????????## "" | | ????????????????????????????????# | | ????????????????????????????????# #? | | ???????????????????????########### #????? | | ???????????????????????# """ " % #????? | | ???????????????????????# """"" ]# ##???? | | ???????????????????????# """"" #???? | | ???????????????????????# """"" #???? | | ???????????????????????# """ " #?#?? | | ???????????????????????# "" " ## #?? | | ???????????????????????# "" ""## #?? | | ???????????????????????# #" % " #?? | | ??????????????####+########+######;;;;;k;" ### | | ??????????????# w k a | | ??????????????# < Y ##### | | ??????????????# @g #????? | | ??????????????###########/############## #???? | | ?????????????????????# #????????# #??"" | | ?????????????????????# """k #????????# # """ | | ?????????????????????# """ #????????# + """ | | ?????????????????????# """ #????????# # | | ?????????????????????# #????????# #?? | | ?????????????????????# """ #????????# #????# | | ?????????????????????# """ #????????# #????? | | ?????????????????????# """ #????##### #????? | | ?????????????????????# ??? #????# # #????? | | ?????????????????????###????###????# #????? | | ???????????????????????????????????# # #????? | | ???????????????????????????????????##### /????? | | ???????????????????????????????????????# #????? | | ?????????????????????????????????#####?# #????? | | ????????????????????????????????? # ###### | | ?????????????????????????????????? """ # | | ????????????????????????????????????Y" + | | ???????????????????????????????????????# | | ???????????????????????????????????????# = | | ???????????????????????????????????????# =%![ | | ???????????????????????????????????????#/ * """ | | ???????????????????????????????????????# % """ | | ???????????????????????????????????????# [ """ | +----------------------------------------------------+ Best States ------------- Heat Dissipation 28 Energy Generation 10 Energy Capacity 250 Matter Stores 300 Matter Capacity 300 Sight Range 18 Terrain Scan Density 10 Evasion (%) 63 Recoil Reduction 2 Offensive Hacking 10 Item Schematics ----------------- None Robot Schematics ------------------ None Fabricated ------------ Nothing Alien Tech Used ----------------- None Achievements -------------- None Challenges ------------ None Game ------ Seed AdvancedOmegaMediator Manual? 0 Play Time 00:18:10 Cumulative 2.4 hours Start 2024.04.01 @ 18:55:58 End 2024.04.01 @ 19:12:54 Sessions 1 Manual Loads 0 Difficulty Rogue Special Mode None Game No. 4 Rogue 4 Adventurer 0 Explorer 0 Win Type - Total 0 Types 0/0/0/0/0/0/0/0/0 Lore% 4 Gallery% 9 Achievement% 8 Wizard Run 0 Options --------- Layout 2 ASCII 0 Keyboard 0 Movement Numpad Keybinds 0 Fullscreen 1 Font 24/Smallcaps Map View 50x44 Zoom Use 0% Tactical HUD 0 Map Filters NONE Filters NONE Steam 1 RUN: 1ec992a7-45a4-4fbe-ac16-6f85eda3bc3d